[Event "8. Arber-Schachopen 2019"]
[Site "Bodenmais"]
[Date "2019.07.31"]
[Round "5.25"]
[White "Brandsma, Romayn"]
[Black "Heiduk, Christoph"]
[Result "1/2-1/2"]
[ECO "B22"]
[WhiteElo "1957"]
[BlackElo "1870"]
[Annotator "NA"]
[PlyCount "188"]
[EventDate "2019.07.27"]
[EventCountry "GER"]
[SourceTitle "playchess.com"]
[Source "ChessBase"]
[SourceQuality "1"]
[TimeControl "40/5400+30:1800+30"]

1. e4 {[%emt 0:00:00]} c5 {[%emt 0:00:00]} 2. c3 {[%emt 0:00:00]} d5 {[%emt 0:00:00]} 3. exd5 {[%emt 0:00:00]} Qxd5 {[%emt 0:00:01]} 4. d4 {[%emt 0:00:00]} Nc6 {[%emt 0:00:22]} 5. Nf3 {[%emt 0:00:00]} Bg4 {[%emt 0:00:37]} 6. Be2 {[%emt 0:00:03]} cxd4 {[%emt 0:00:33]} 7. cxd4 {[%emt 0:00:10]} e6 {[%emt 0:00:20]} 8. O-O {[%emt 0:01:09]} Nf6 {[%emt 0:00:18]} 9. Nc3 {[%emt 0:01:18]} Qa5 {[%emt 0:00:10]} 10. Be3 {[%emt 0:03:56]} Be7 {[%emt 0:04:40]} 11. a3 {[%emt 0:06:25]} O-O 12. b4 {[%emt 0:01:47]} Qd8 {[%emt 0:02:10]} 13. Na4 {[%emt 0:12:02]} Nd5 {[%emt 0:10:13]} 14. Rc1 {[%emt 0:08:06]} Bf6 {[%emt 0:06:19]} 15. Nc5 {[%emt 0:02:44]} Qe7 16. Ne4 {[%emt 0:03:15]} a6 {[%emt 0:14:42]} 17. Nxf6+ {[%emt 0:02:09]} Qxf6 {[%emt 0:06:05]} 18. h3 {[%emt 0:01:10]} Bf5 {[%emt 0:07:54]} 19. Bd3 {[%emt 0:05:41]} Bxd3 {[%emt 0:03:27]} 20. Qxd3 {[%emt 0:02:23]} h6 {[%emt 0:01:17]} 21. Rfe1 {[%emt 0:01:50]} Rfd8 {[%emt 0:10:57]} 22. Qe4 {[%emt 0:05:23]} Nde7 {[%emt 0:04:24]} 23. Ne5 {[%emt 0:01:57]} Rd5 {[%emt 0:00:39]} 24. Nxc6 {[%emt 0:02:10]} Nxc6 {[%emt 0:00:14]} 25. Rc5 {[%emt 0:02:26]} Rad8 {[%emt 0:00:22]} 26. Rxd5 {[%emt 0:04:15]} Rxd5 {[%emt 0:00:28]} 27. Rc1 {[%emt 0:03:32]} Qf5 {[%emt 0:02:08]} 28. Qxf5 {[%emt 0:01:16]} Rxf5 {[%emt 0:00:08]} 29. Rc5 {[%emt 0:00:38]} Rd5 {[%emt 0:04:34]} 30. Rxd5 {[%emt 0:01:58]} exd5 {[%emt 0:00:01]} 31. Kf1 {[%emt 0:01:23]} Kf8 {[%emt 0:00:24]} 32. Ke2 {[%emt 0:00:09]} Ke7 {[%emt 0:00:15]} 33. Kd3 {[%emt 0:00:07]} Ke6 {[%emt 0:00:54]} 34. Bf4 {[%emt 0:01:30]} h5 {[%emt 0:00:37]} 35. Bc7 {[%emt 0:00:44]} b5 {[%emt 0:01:03]} 36. Bb6 {[%emt 0:00:46]} Kf5 {[%emt 0:02:17]} 37. Bc5 {[%emt 0:01:44]} g5 {[%emt 0:02:42]} 38. Ke3 {[%emt 0:01:33]} Nd8 {[%emt 0:02:43]} 39. g3 {[%emt 0:02:32]} Ne6 {[%emt 0:03:19]} 40. Bd6 {[%emt 0:01:24]} g4 {[%emt 0:01:35]} 41. h4 {[%emt 0:30:20]} Ng7 {[%emt 0:32:26]} 42. Bf8 {[%emt 0:01:43]} Ne6 {[%emt 0:00:55]} 43. Bd6 {[%emt 0:00:08]} Kg6 {[%emt 0:02:51]} 44. Be5 {[%emt 0:00:41]} f6 {[%emt 0:01:34]} 45. Bd6 {[%emt 0:00:16]} Kf5 {[%emt 0:01:03]} 46. Be7 {[%emt 0:01:16]} Ng7 {[%emt 0:01:09]} 47. Bd6 {[%emt 0:01:16]} Ke6 {[%emt 0:00:08]} 48. Bb8 {[%emt 0:00:37]} Nf5+ {[%emt 0:00:46]} 49. Kd3 {[%emt 0:00:13]} Ne7 {[%emt 0:00:19]} 50. Bc7 {[%emt 0:00:27]} Nc8 {[%emt 0:00:12]} 51. Kc3 {[%emt 0:04:40]} Kd7 {[%emt 0:00:06]} 52. Bf4 {[%emt 0:00:13]} Nb6 {[%emt 0:00:07]} 53. Kb3 {[%emt 0:00:08]} Ke6 {[%emt 0:00:19]} 54. Bc7 {[%emt 0:00:42]} Nc4 {[%emt 0:00:11]} 55. a4 {[%emt 0:00:47]} Nd2+ {[%emt 0:00:31]} 56. Kc2 {[%emt 0:00:39]} Ne4 {[%emt 0:00:07]} 57. axb5 {[%emt 0:00:06]} axb5 {[%emt 0:00:01]} 58. Kd3 {[%emt 0:00:34]} Nxf2+ {[%emt 0:00:06]} 59. Ke2 {[%emt 0:00:37]} Ne4 {[%emt 0:00:07]} 60. Bf4 {[%emt 0:00:37]} Nc3+ {[%emt 0:03:10]} 61. Kd3 {[%emt 0:00:44]} Na4 {[%emt 0:00:15]} 62. Bh6 {[%emt 0:01:25]} Nb2+ {[%emt 0:00:10]} 63. Kc2 {[%emt 0:00:12]} Nc4 {[%emt 0:00:13]} 64. Kd3 {[%emt 0:00:11]} Nd6 {[%emt 0:00:45]} 65. Bf4 {[%emt 0:00:12]} Nf7 {[%emt 0:00:25]} 66. Ke3 {[%emt 0:00:54]} Nd8 {[%emt 0:00:14]} 67. Kd3 {[%emt 0:00:24]} Nc6 {[%emt 0:00:12]} 68. Bd2 {[%emt 0:00:15]} Kf5 {[%emt 0:00:23]} 69. Ke3 {[%emt 0:00:15]} Ne7 {[%emt 0:00:18]} 70. Kd3 {[%emt 0:00:13]} Nc8 {[%emt 0:00:21]} 71. Bf4 {[%emt 0:00:26]} Nb6 {[%emt 0:00:11]} 72. Bc7 {[%emt 0:01:10]} Nd7 {[%emt 0:01:05]} 73. Bf4 {[%emt 0:00:12]} Nf8 {[%emt 0:00:31]} 74. Bd6 {[%emt 0:00:48]} Ng6 {[%emt 0:00:12]} 75. Ke3 {[%emt 0:00:16]} Ke6 {[%emt 0:00:47]} 76. Bb8 {[%emt 0:00:37]} Ne7 {[%emt 0:00:11]} 77. Ba7 {[%emt 0:02:00]} Nc6 {[%emt 0:01:48]} 78. Bc5 {[%emt 0:00:44]} Kf5 {[%emt 0:00:16]} 79. Kd3 {[%emt 0:00:20]} Nb8 {[%emt 0:00:36]} 80. Bd6 {[%emt 0:00:39]} Nd7 {[%emt 0:00:11]} 81. Bc7 {[%emt 0:00:19]} Nf8 {[%emt 0:01:55]} 82. Bd6 {[%emt 0:00:14]} Ng6 {[%emt 0:00:11]} 83. Ke3 {[%emt 0:00:17]} Ke6 {[%emt 0:00:31]} 84. Bb8 {[%emt 0:00:05]} Ne7 {[%emt 0:00:27]} 85. Ba7 {[%emt 0:00:34]} Nf5+ {[%emt 0:00:32]} 86. Kf4 {[%emt 0:00:13]} Nd6 {[%emt 0:00:15]} 87. Ke3 {[%emt 0:00:41]} Kf5 {[%emt 0:00:48]} 88. Bb8 {[%emt 0:00:12]} Nc4+ {[%emt 0:01:00]} 89. Kd3 {[%emt 0:00:13]} Ke6 {[%emt 0:00:25]} 90. Bf4 {[%emt 0:00:25]} Nb6 {[%emt 0:01:18]} 91. Bc7 {[%emt 0:00:31]} Nd7 {[%emt 0:00:03]} 92. Bf4 {[%emt 0:00:21]} Nf8 {[%emt 0:01:21]} 93. Ke3 {[%emt 0:00:22]} Ng6 {[%emt 0:00:39]} 94. Bb8 {[%emt 0:00:26]} Ne7 1/2-1/2

[Event "8. Arber-Schachopen 2019"]
[Site "Bodenmais"]
[Date "2019.07.31"]
[Round "5.26"]
[White "Kiwitz, Henri"]
[Black "Villani, Cristian"]
[Result "1/2-1/2"]
[ECO "B40"]
[WhiteElo "1755"]
[BlackElo "2017"]
[Annotator "NA"]
[PlyCount "98"]
[EventDate "2019.07.27"]
[EventCountry "GER"]
[SourceTitle "playchess.com"]
[Source "ChessBase"]
[SourceQuality "1"]
[TimeControl "40/5400+30:1800+30"]

1. e4 {[%emt 0:00:00]} c5 {[%emt 0:00:00]} 2. Nf3 {[%emt 0:02:21]} e6 {[%emt 0:00:00]} 3. b3 {[%emt 0:01:25]} Nc6 {[%emt 0:09:25]} 4. Bb2 {[%emt 0:00:28]} d6 {[%emt 0:01:45]} 5. d4 {[%emt 0:04:19]} cxd4 {[%emt 0:12:53]} 6. Nxd4 {[%emt 0:00:08]} Nf6 {[%emt 0:02:10]} 7. Bd3 {[%emt 0:04:48]} Qa5+ {[%emt 0:04:49]} 8. Nd2 {[%emt 0:06:47]} Bd7 {[%emt 0:11:00]} 9. O-O {[%emt 0:07:51]} Ne5 {[%emt 0:02:03]} 10. N2f3 {[%emt 0:05:22]} Ng6 {[%emt 0:04:03]} 11. Re1 {[%emt 0:14:58]} Be7 {[%emt 0:00:30]} 12. c4 {[%emt 0:02:04]} O-O {[%emt 0:02:02]} 13. g3 {[%emt 0:12:22]} a6 {[%emt 0:01:22]} 14. Qe2 {[%emt 0:02:28]} Ng4 {[%emt 0:06:30]} 15. Nd2 {[%emt 0:07:07]} N4e5 {[%emt 0:04:10]} 16. Nf1 {[%emt 0:10:24]} Rac8 {[%emt 0:02:59]} 17. Ne3 {[%emt 0:00:57]} Nxd3 {[%emt 0:02:01]} 18. Qxd3 {[%emt 0:00:06]} Ne5 {[%emt 0:00:25]} 19. Qe2 {[%emt 0:00:37]} b5 {[%emt 0:02:10]} 20. cxb5 {[%emt 0:02:44]} Bxb5 {[%emt 0:05:37]} 21. Nxb5 {[%emt 0:00:26]} axb5 {[%emt 0:03:31]} 22. Ng4 {[%emt 0:03:59]} b4 {[%emt 0:08:15]} 23. Bxe5 {[%emt 0:03:34]} dxe5 {[%emt 0:00:04]} 24. Ne3 {[%emt 0:00:19]} Bc5 {[%emt 0:05:28]} 25. Nc4 {[%emt 0:00:16]} Qa7 {[%emt 0:00:25]} 26. Rac1 {[%emt 0:04:00]} Bd4 {[%emt 0:00:33]} 27. Kg2 {[%emt 0:00:25]} Rfd8 {[%emt 0:01:17]} 28. h4 {[%emt 0:01:41]} Bc3 {[%emt 0:00:52]} 29. Rh1 {[%emt 0:00:15]} Ra8 {[%emt 0:02:22]} 30. Rc2 {[%emt 0:00:06]} Qd4 {[%emt 0:00:42]} 31. h5 {[%emt 0:01:10]} f5 {[%emt 0:01:41]} 32. Rh4 {[%emt 0:01:25]} Qd3 {[%emt 0:01:41]} 33. exf5 {[%emt 0:00:56]} exf5 {[%emt 0:01:48]} 34. Qxd3 {[%emt 0:00:39]} Rxd3 {[%emt 0:00:04]} 35. Ne3 {[%emt 0:00:23]} g6 {[%emt 0:00:49]} 36. hxg6 {[%emt 0:00:13]} hxg6 {[%emt 0:00:02]} 37. Rc4 {[%emt 0:00:48]} Kg7 {[%emt 0:00:50]} 38. Rc7+ {[%emt 0:00:02]} Kf6 {[%emt 0:01:00]} 39. Rc6+ {[%emt 0:00:58]} Kg5 {[%emt 0:00:37]} 40. Nc4 {[%emt 0:00:33]} e4 {[%emt 0:01:15]} 41. Nd6 {[%emt 0:17:50]} Rd1 {[%emt 0:25:29]} 42. Nb5 {[%emt 0:12:49]} Be5 {[%emt 0:00:30]} 43. R6c4 {[%emt 0:00:41]} Rh8 {[%emt 0:00:18]} 44. Rc1 {[%emt 0:00:34]} Rxc1 {[%emt 0:00:48]} 45. Rxc1 {[%emt 0:00:02]} Ra8 {[%emt 0:00:29]} 46. Rc5 {[%emt 0:00:54]} Kf6 {[%emt 0:00:49]} 47. Rc6+ {[%emt 0:00:16]} Kg5 {[%emt 0:01:52]} 48. Rc5 {[%emt 0:00:05]} Kf6 {[%emt 0:00:18]} 49. Rc6+ {[%emt 0:00:05]} Kg5 1/2-1/2

[Event "8. Arber-Schachopen 2019"]
[Site "Bodenmais"]
[Date "2019.08.01"]
[Round "6.1"]
[White "Delchev, Aleksander"]
[Black "Milov, Leonid"]
[Result "1/2-1/2"]
[ECO "D11"]
[WhiteElo "2571"]
[BlackElo "2472"]
[Annotator "ChessBase"]
[PlyCount "46"]
[EventDate "2019.07.27"]
[EventCountry "GER"]
[SourceTitle "playchess.com"]
[Source "ChessBase"]
[SourceQuality "1"]
[TimeControl "40/5400+30:1800+30"]

1. d4 {[%emt 0:02:41]} d5 {[%emt 0:00:00]} 2. c4 {[%emt 0:00:05]} c6 {[%emt 0:00:00]} 3. Nf3 {[%emt 0:00:49]} Nf6 {[%emt 0:00:00]} 4. Qc2 {[%emt 0:00:05]} dxc4 {[%emt 0:01:03]} 5. Qxc4 {[%emt 0:00:05]} e6 {[%emt 0:00:37]} 6. Bg5 {[%emt 0:07:42]} b5 {[%emt 0:00:25]} 7. Qc2 {[%emt 0:00:44]} Bb7 {[%emt 0:00:02]} 8. Nbd2 {[%emt 0:01:35]} Nbd7 {[%emt 0:00:05]} 9. e3 {[%emt 0:06:14]} a6 {[%emt 0:00:53]} 10. a4 {[%emt 0:00:06]} h6 {[%emt 0:08:56]} 11. Bxf6 {[%emt 0:04:01]} Qxf6 {[%emt 0:00:08]} 12. Bd3 {[%emt 0:00:26]} Bb4 {[%emt 0:01:34]} 13. O-O {[%emt 0:01:05]} O-O {[%emt 0:01:13]} 14. Rfc1 {[%emt 0:03:00]} Qe7 {[%emt 0:07:17]} 15. Nb3 {[%emt 0:05:18]} bxa4 {[%emt 0:24:55]} 16. Rxa4 {[%emt 0:00:59]} a5 {[%emt 0:00:19]} 17. Rca1 {[%emt 0:07:48]} c5 {[%emt 0:03:01]} 18. Bh7+ {[%emt 0:02:40]} Kh8 {[%emt 0:00:15]} 19. Be4 {[%emt 0:00:03]} Bxe4 {[%emt 0:11:11]} 20. Qxe4 {[%emt 0:00:05]} cxd4 {[%emt 0:07:44]} 21. Nfxd4 {[%emt 0:00:10]} Nc5 {[%emt 0:02:26]} 22. Nxc5 {[%emt 0:00:07]} Qxc5 {[%emt 0:00:43]} 23. g3 {[%emt 0:02:36]} Rac8 {[%emt 0:01:21]} 1/2-1/2

[Event "8. Arber-Schachopen 2019"]
[Site "Bodenmais"]
[Date "2019.08.01"]
[Round "6.2"]
[White "Peng, Li Min"]
[Black "Mirzoev, Emil"]
[Result "0-1"]
[ECO "C60"]
[WhiteElo "2466"]
[BlackElo "2493"]
[Annotator "ChessBase"]
[PlyCount "80"]
[EventDate "2019.07.27"]
[EventCountry "GER"]
[SourceTitle "playchess.com"]
[Source "ChessBase"]
[SourceQuality "1"]
[TimeControl "40/5400+30:1800+30"]

1. e4 {[%emt 0:00:04]} Nc6 {[%emt 0:17:40]} 2. Nf3 {[%emt 0:01:29]} e5 {[%emt 0:03:02]} 3. Bb5 {[%emt 0:01:10]} g6 {[%emt 0:01:02]} 4. c3 d6 {[%emt 0:01:31]} 5. d4 {[%emt 0:02:00]} Bd7 {[%emt 0:01:18]} 6. O-O {[%emt 0:03:04]} Bg7 {[%emt 0:00:23]} 7. Bg5 {[%emt 0:03:04]} f6 {[%emt 0:01:48]} 8. Be3 {[%emt 0:00:10]} Nh6 {[%emt 0:00:53]} 9. dxe5 {[%emt 0:04:05]} fxe5 {[%emt 0:02:09]} 10. Bc4 {[%emt 0:00:05]} Ng4 {[%emt 0:00:56]} 11. Bg5 {[%emt 0:00:01]} Nf6 {[%emt 0:01:26]} 12. b4 {[%emt 0:09:02]} Qe7 {[%emt 0:04:17]} 13. Nbd2 {[%emt 0:00:20]} Nd8 {[%emt 0:10:17]} 14. Bd5 {[%emt 0:06:46]} h6 {[%emt 0:02:45]} 15. Nh4 {[%emt 0:00:15]} hxg5 {[%emt 0:00:33]} 16. Nxg6 {[%emt 0:00:01]} Nxd5 {[%emt 0:00:22]} 17. Nxe7 {[%emt 0:00:01]} Nxe7 {[%emt 0:00:10]} 18. Nc4 {[%emt 0:01:31]} Ne6 {[%emt 0:01:43]} 19. a4 {[%emt 0:05:19]} O-O-O {[%emt 0:01:35]} 20. b5 {[%emt 0:06:21]} Kb8 {[%emt 0:00:55]} 21. b6 {[%emt 0:02:29]} axb6 {[%emt 0:01:27]} 22. Nxb6 {[%emt 0:00:04]} Bc6 {[%emt 0:02:43]} 23. Nd5 {[%emt 0:00:07]} Bxd5 {[%emt 0:00:52]} 24. exd5 {[%emt 0:00:06]} Nc5 {[%emt 0:00:19]} 25. a5 {[%emt 0:09:26]} e4 {[%emt 0:06:18]} 26. Rb1 {[%emt 0:14:53]} Bxc3 {[%emt 0:04:18]} 27. Rb5 {[%emt 0:01:00]} Nf5 {[%emt 0:01:03]} 28. Qb1 {[%emt 0:07:58]} Nd4 {[%emt 0:02:13]} 29. Rc1 {[%emt 0:00:02]} e3 {[%emt 0:04:19]} 30. fxe3 {[%emt 0:09:09]} Ne2+ {[%emt 0:02:00]} 31. Kf2 {[%emt 0:00:05]} Nxc1 {[%emt 0:00:43]} 32. Rxc5 {[%emt 0:08:16]} Rdf8+ {[%emt 0:01:39]} 33. Kg3 {[%emt 0:00:28]} Ne2+ {[%emt 0:00:05]} 34. Kg4 {[%emt 0:00:04]} Rh4+ {[%emt 0:00:52]} 35. Kxg5 {[%emt 0:00:04]} Bf6+ {[%emt 0:00:03]} 36. Kf5 {[%emt 0:04:29]} Bd8+ {[%emt 0:00:17]} 37. Ke6 {[%emt 0:00:34]} Rh6+ {[%emt 0:00:28]} 38. Kd7 {[%emt 0:00:10]} dxc5 {[%emt 0:00:12]} 39. Qxb7+ {[%emt 0:01:37]} Kxb7 {[%emt 0:00:01]} 40. a6+ {[%emt 0:00:01]} Kxa6 {[%emt 0:00:01]} 0-1

[Event "8. Arber-Schachopen 2019"]
[Site "Bodenmais"]
[Date "2019.08.01"]
[Round "6.3"]
[White "Pap, Misa"]
[Black "Poetz, Florian"]
[Result "1/2-1/2"]
[ECO "B40"]
[WhiteElo "2461"]
[BlackElo "2389"]
[Annotator "ChessBase"]
[PlyCount "45"]
[EventDate "2019.07.27"]
[EventCountry "GER"]
[SourceTitle "playchess.com"]
[Source "ChessBase"]
[SourceQuality "1"]
[TimeControl "40/5400+30:1800+30"]

1. e4 {[%emt 0:00:00]} c5 {[%emt 0:00:00]} 2. Nf3 {[%emt 0:00:00]} e6 {[%emt 0:00:00]} 3. c3 {[%emt 0:00:15]} d5 {[%emt 0:00:00]} 4. exd5 {[%emt 0:00:10]} Qxd5 {[%emt 0:00:03]} 5. d4 {[%emt 0:01:33]} Nf6 {[%emt 0:00:15]} 6. Bd3 {[%emt 0:00:26]} Be7 {[%emt 0:01:02]} 7. Be3 {[%emt 0:00:19]} O-O {[%emt 0:01:01]} 8. O-O {[%emt 0:00:40]} Nc6 {[%emt 0:01:49]} 9. Qe2 {[%emt 0:13:24]} cxd4 {[%emt 0:04:34]} 10. cxd4 {[%emt 0:02:57]} Nb4 {[%emt 0:00:19]} 11. Nc3 {[%emt 0:00:06]} Qh5 {[%emt 0:00:32]} 12. Bc4 {[%emt 0:05:54]} b6 {[%emt 0:02:47]} 13. a3 {[%emt 0:12:44]} Nbd5 {[%emt 0:01:17]} 14. Qd2 {[%emt 0:00:06]} Nxc3 {[%emt 0:11:42]} 15. bxc3 {[%emt 0:01:01]} Qa5 {[%emt 0:00:05]} 16. Ne5 {[%emt 0:12:42]} Bb7 {[%emt 0:00:38]} 17. Rfc1 {[%emt 0:08:37]} Rac8 {[%emt 0:01:11]} 18. Qe2 {[%emt 0:02:10]} Ne4 {[%emt 0:08:20]} 19. Qg4 {[%emt 0:02:24]} Nf6 {[%emt 0:06:40]} 20. Qh3 {[%emt 0:00:54]} Bd5 {[%emt 0:01:52]} 21. Bxd5 {[%emt 0:06:56]} exd5 {[%emt 0:01:49]} 22. Bg5 {[%emt 0:03:13]} Rfe8 {[%emt 0:02:35]} 23. a4 {[%emt 0:00:12]} 1/2-1/2

[Event "8. Arber-Schachopen 2019"]
[Site "Bodenmais"]
[Date "2019.08.01"]
[Round "6.4"]
[White "Hoffmann, Michael"]
[Black "Vuckovic, Zarko"]
[Result "1-0"]
[ECO "A27"]
[WhiteElo "2438"]
[BlackElo "2214"]
[Annotator "NA"]
[PlyCount "149"]
[EventDate "2019.07.27"]
[EventCountry "GER"]
[SourceTitle "playchess.com"]
[Source "ChessBase"]
[SourceQuality "1"]
[TimeControl "40/5400+30:1800+30"]

1. c4 {[%emt 0:00:00]} e5 {[%emt 0:00:00]} 2. Nc3 {[%emt 0:02:35]} Nc6 {[%emt 0:00:00]} 3. Nf3 {[%emt 0:00:36]} g6 {[%emt 0:00:00]} 4. d4 {[%emt 0:01:29]} exd4 {[%emt 0:02:08]} 5. Nxd4 {[%emt 0:00:13]} Bg7 {[%emt 0:01:02]} 6. Nxc6 {[%emt 0:01:46]} bxc6 {[%emt 0:07:57]} 7. g3 {[%emt 0:01:08]} Ne7 {[%emt 0:00:12]} 8. Bg2 {[%emt 0:00:09]} O-O {[%emt 0:00:21]} 9. O-O {[%emt 0:00:09]} d6 {[%emt 0:01:06]} 10. Bg5 {[%emt 0:17:06]} Rb8 {[%emt 0:03:23]} 11. Qc1 {[%emt 0:01:58]} Be6 {[%emt 0:01:29]} 12. b3 {[%emt 0:01:11]} Qd7 {[%emt 0:05:34]} 13. Rd1 {[%emt 0:03:20]} f6 {[%emt 0:03:32]} 14. Bh6 {[%emt 0:01:54]} c5 {[%emt 0:04:54]} 15. Bxg7 {[%emt 0:03:09]} Kxg7 {[%emt 0:00:28]} 16. Qa3 {[%emt 0:09:53]} Nc8 {[%emt 0:08:36]} 17. Nb5 {[%emt 0:05:48]} c6 {[%emt 0:02:10]} 18. Nc3 {[%emt 0:01:17]} Bh3 {[%emt 0:07:53]} 19. Bh1 {[%emt 0:03:50]} h5 {[%emt 0:06:34]} 20. Rd2 {[%emt 0:02:39]} Bf5 {[%emt 0:06:51]} 21. Rad1 {[%emt 0:01:07]} Qc7 {[%emt 0:03:19]} 22. Be4 {[%emt 0:02:36]} Be6 {[%emt 0:03:24]} 23. Bg2 {[%emt 0:04:14]} Bf5 {[%emt 0:02:10]} 24. h3 {[%emt 0:03:44]} Rd8 {[%emt 0:01:35]} 25. Qb2 {[%emt 0:03:27]} Nb6 {[%emt 0:01:23]} 26. Qa1 {[%emt 0:02:53]} Rd7 {[%emt 0:01:34]} 27. g4 {[%emt 0:03:11]} hxg4 {[%emt 0:00:56]} 28. hxg4 {[%emt 0:00:09]} Bxg4 {[%emt 0:00:16]} 29. Ne4 {[%emt 0:00:07]} Rf8 {[%emt 0:00:25]} 30. Rxd6 {[%emt 0:00:53]} Rxd6 {[%emt 0:00:58]} 31. Rxd6 {[%emt 0:00:12]} Nd7 {[%emt 0:01:10]} 32. Qd1 {[%emt 0:01:18]} Re8 {[%emt 0:00:50]} 33. Ng3 {[%emt 0:02:54]} Ne5 {[%emt 0:00:44]} 34. Qd2 {[%emt 0:01:35]} Re6 {[%emt 0:01:27]} 35. Rxe6 {[%emt 0:03:49]} Bxe6 {[%emt 0:00:06]} 36. Ne4 {[%emt 0:02:26]} Bf5 {[%emt 0:00:14]} 37. Nxc5 {[%emt 0:06:26]} Ng4 {[%emt 0:04:49]} 38. f4 {[%emt 0:03:42]} Qb6 {[%emt 0:02:03]} 39. b4 {[%emt 0:00:08]} a5 {[%emt 0:00:03]} 40. a3 {[%emt 0:03:15]} axb4 {[%emt 0:00:06]} 41. axb4 Bc8 {[%emt 0:42:32]} 42. Bh3 {[%emt 0:06:48]} Qa7 {[%emt 0:00:00]} 43. Bxg4 {[%emt 0:01:37]} Bxg4 {[%emt 0:00:00]} 44. Kf2 {[%emt 0:00:52]} Qa3 {[%emt 0:00:00]} 45. Qd6 {[%emt 0:03:01]} Qh3 {[%emt 0:00:00]} 46. Qe7+ {[%emt 0:01:42]} Kh6 {[%emt 0:00:00]} 47. Qf8+ {[%emt 0:00:32]} Kh7 {[%emt 0:00:00]} 48. Qe7+ {[%emt 0:00:10]} Kh6 {[%emt 0:00:00]} 49. Nd3 {[%emt 0:01:48]} Qh2+ {[%emt 0:00:00]} 50. Ke1 {[%emt 0:00:09]} Qg1+ {[%emt 0:00:00]} 51. Kd2 {[%emt 0:00:07]} Qa1 {[%emt 0:00:00]} 52. Qf8+ {[%emt 0:00:31]} Kh7 {[%emt 0:00:00]} 53. Qe7+ {[%emt 0:00:08]} Kh6 {[%emt 0:00:00]} 54. b5 {[%emt 0:01:06]} cxb5 {[%emt 0:00:00]} 55. Qf8+ {[%emt 0:00:42]} Kh7 {[%emt 0:00:00]} 56. Qe7+ {[%emt 0:00:11]} Kh6 {[%emt 0:00:00]} 57. cxb5 {[%emt 0:00:32]} Qa2+ {[%emt 0:00:00]} 58. Ke1 {[%emt 0:00:44]} Qb1+ {[%emt 0:00:00]} 59. Kf2 {[%emt 0:00:45]} Qxb5 {[%emt 0:00:00]} 60. Qxf6 {[%emt 0:00:12]} Kh7 {[%emt 0:00:00]} 61. Qe7+ {[%emt 0:04:01]} Kh6 {[%emt 0:00:00]} 62. Qh4+ {[%emt 0:05:43]} Bh5 {[%emt 0:00:00]} 63. Qf6 {[%emt 0:00:09]} Kh7 {[%emt 0:00:00]} 64. Qf7+ {[%emt 0:01:16]} Kh8 {[%emt 0:00:00]} 65. Qf8+ {[%emt 0:00:32]} Kh7 {[%emt 0:00:00]} 66. Qe7+ {[%emt 0:00:20]} Kh6 {[%emt 0:00:00]} 67. Qe5 {[%emt 0:00:39]} Qb6+ {[%emt 0:00:00]} 68. Nc5 {[%emt 0:01:46]} Kh7 {[%emt 0:00:16]} 69. Qe7+ {[%emt 0:02:23]} Kh6 {[%emt 0:00:13]} 70. Qf8+ {[%emt 0:00:56]} Kh7 {[%emt 0:00:08]} 71. Qe7+ {[%emt 0:00:37]} Kh6 {[%emt 0:00:07]} 72. Qe3 {[%emt 0:00:27]} Bg4 {[%emt 0:10:06]} 73. Ne4 {[%emt 0:00:28]} Qb5 {[%emt 0:00:21]} 74. f5+ {[%emt 0:02:08]} Kg7 {[%emt 0:00:49]} 75. Qd4+ {[%emt 0:00:19]} 1-0

[Event "8. Arber-Schachopen 2019"]
[Site "Bodenmais"]
[Date "2019.08.01"]
[Round "6.5"]
[White "Beck, Gerald"]
[Black "Bogdanov, Egor"]
[Result "0-1"]
[ECO "A15"]
[WhiteElo "2176"]
[BlackElo "2407"]
[Annotator "NA"]
[PlyCount "64"]
[EventDate "2019.07.27"]
[EventCountry "GER"]
[SourceTitle "playchess.com"]
[Source "ChessBase"]
[SourceQuality "1"]
[TimeControl "40/5400+30:1800+30"]

1. c4 {[%emt 0:00:00]} Nf6 {[%emt 0:01:00]} 2. g3 {[%emt 0:00:38]} g6 {[%emt 0:01:19]} 3. Bg2 {[%emt 0:00:12]} Bg7 {[%emt 0:00:05]} 4. Nc3 {[%emt 0:00:10]} O-O {[%emt 0:00:06]} 5. e4 {[%emt 0:00:07]} d6 {[%emt 0:00:30]} 6. Nge2 {[%emt 0:00:19]} c6 {[%emt 0:02:12]} 7. O-O {[%emt 0:01:47]} a6 {[%emt 0:00:12]} 8. d3 {[%emt 0:06:09]} b5 {[%emt 0:00:39]} 9. Bd2 {[%emt 0:12:04]} Nfd7 {[%emt 0:00:41]} 10. Qc2 {[%emt 0:07:52]} Nb6 {[%emt 0:01:28]} 11. Nd1 {[%emt 0:06:39]} N8d7 {[%emt 0:03:50]} 12. Ba5 {[%emt 0:04:57]} Bb7 {[%emt 0:01:20]} 13. Ne3 {[%emt 0:07:19]} c5 {[%emt 0:01:33]} 14. Nd5 {[%emt 0:03:37]} e6 {[%emt 0:09:58]} 15. Nxb6 {[%emt 0:01:01]} Nxb6 {[%emt 0:00:05]} 16. Nc3 {[%emt 0:00:40]} Bc6 {[%emt 0:00:19]} 17. Qb3 {[%emt 0:04:41]} Qb8 {[%emt 0:00:56]} 18. a3 {[%emt 0:06:59]} Nd7 {[%emt 0:01:25]} 19. Rfd1 {[%emt 0:08:28]} Ne5 {[%emt 0:01:47]} 20. f4 {[%emt 0:05:04]} Ng4 {[%emt 0:00:28]} 21. Rd2 {[%emt 0:07:58]} Bd4+ {[%emt 0:00:14]} 22. Kf1 {[%emt 0:00:24]} Ne3+ {[%emt 0:01:19]} 23. Ke1 {[%emt 0:00:20]} bxc4 {[%emt 0:00:34]} 24. Qa2 {[%emt 0:07:59]} cxd3 {[%emt 0:01:16]} 25. b3 {[%emt 0:00:15]} Nc2+ {[%emt 0:00:57]} 26. Rxc2 {[%emt 0:01:01]} dxc2 {[%emt 0:00:02]} 27. Qxc2 {[%emt 0:00:17]} Qb7 {[%emt 0:00:07]} 28. Rd1 {[%emt 0:01:14]} Rab8 {[%emt 0:00:21]} 29. Ne2 {[%emt 0:02:34]} Qxb3 {[%emt 0:03:47]} 30. Nxd4 {[%emt 0:00:29]} cxd4 {[%emt 0:00:02]} 31. Qxc6 {[%emt 0:00:37]} Qe3+ {[%emt 0:00:05]} 32. Kf1 {[%emt 0:00:11]} Rb2 {[%emt 0:00:12]} 0-1